bitfinex-derivatives/quotes_SOLF0:USTF0_20220108
["timestamp","ask_amount","ask_price","bid_price","bid_amount"]
[1641630035918,4.0,145.37,145.3,4.83139758]
[1641630036117,4.0,145.35,145.29,4.83139758]
[1641630036918,27.66479,145.33,145.29,4.83139758]
[1641630037319,4.0,145.32,145.25,14.53145113]
[1641630037617,27.66479,145.33,145.25,14.53145113]
[1641630038720,27.66479,145.33,145.25,8.404]
[1641630039319,27.66479,145.35,145.25,8.404]
[1641630039519,27.66479,145.35,145.25,22.93545113]
[1641630039718,31.66479,145.35,145.25,22.93545113]
[1641630040622,27.66479,145.35,145.26,14.53145113]
[1641630041021,27.66479,145.35,145.26,42.19624113]
[1641630041619,4.0,145.34,145.26,14.53145113]
[1641630042218,4.0,145.34,145.24,22.38668805]
[1641630042419,55.45979,145.35,145.24,22.38668805]
[1641630042420,118.64959,145.35,145.24,22.38668805]
[1641630042819,4.0,145.34,145.24,22.38668805]
[1641630043020,27.66479,145.3,145.24,14.53145113]
[1641630043221,27.66479,145.3,145.23,42.19624113]
[1641630044223,27.66479,145.3,145.24,22.39484863]
[1641630048332,27.66479,145.3,145.24,27.99084863]
[1641630048530,104.84959,145.35,145.24,27.99084863]
[1641630049030,104.84959,145.35,145.27,27.66479]
[1641630049230,104.84959,145.35,145.27,33.45479]
[1641630051236,104.84959,145.35,145.27,47.98624113]
[1641630052633,97.03699778,145.35,145.27,47.98624113]
[1641630053538,97.03699778,145.35,145.27,20.32145113]
[1641630053836,97.03699778,145.35,145.27,14.53145113]
[1641630054536,97.03699778,145.35,145.26,22.39425738]
[1641630057338,101.03699778,145.35,145.26,22.39425738]
[1641630058941,6.87828868,145.32,145.26,22.39425738]
[1641630059139,27.66479,145.28,145.26,22.39425738]
[1641630059340,34.16479,145.28,145.26,22.39425738]
[1641630059539,34.16479,145.28,145.23,38.68735838]
[1641630060339,34.16479,145.28,145.22,14.59852392]
[1641630061042,4.0,145.23,145.15,57.34055117]
[1641630061241,4.0,145.22,145.15,46.30055117]
[1641630061441,70.78283991,145.23,145.15,46.30055117]
[1641630061640,4.0,145.2,145.15,46.30055117]
[1641630061839,9.328,145.2,145.15,46.30055117]
[1641630062041,5.328,145.2,145.15,38.9459493]
[1641630062339,9.328,145.2,145.15,38.9459493]
[1641630062740,4.0,145.16,145.15,19.9459493]
[1641630062941,11.147,145.16,145.11,46.30055117]
[1641630063141,27.66479,145.12,145.07,95.85886673]
[1641630063342,27.66479,145.12,145.03,62.9976]
[1641630063343,34.63679,145.12,145.03,62.9976]
[1641630063543,34.63679,145.12,145.02,27.66479]
[1641630063944,6.972,145.12,145.02,31.66479]
[1641630064146,6.972,145.12,145.02,27.66479]
[1641630064343,4.0,145.15,145.02,27.66479]
[1641630064545,80.1917556,145.18,145.02,27.66479]
[1641630064745,4.0,145.17,145.02,27.66479]
[1641630065045,80.1917556,145.18,145.02,27.66479]
[1641630065247,27.66479,145.17,145.07,27.66479]
[1641630065449,76.1917556,145.18,145.07,34.02679]
[1641630067250,76.1917556,145.18,145.11,27.66479]
[1641630067450,6.8851556,145.18,145.11,27.66479]
[1641630067651,31.66479,145.2,145.11,27.66479]
[1641630067850,27.66479,145.2,145.11,27.66479]
[1641630068853,31.66479,145.2,145.11,27.66479]
[1641630069054,27.66479,145.2,145.11,27.66479]
[1641630069354,31.66479,145.2,145.11,27.66479]
[1641630069554,27.66479,145.2,145.11,27.66479]
[1641630071858,27.66479,145.2,145.11,33.34279]
[1641630072858,27.66479,145.2,145.11,27.66479]
[1641630073058,31.66479,145.2,145.11,27.66479]
[1641630073257,27.66479,145.2,145.11,55.32958]
[1641630073456,6.88468158,145.19,145.11,55.32958]
[1641630075660,6.88468158,145.19,145.08,66.6506]
[1641630075859,10.88468158,145.19,145.08,66.6506]
[1641630077261,6.88468158,145.19,145.08,94.31539]
[1641630077661,4.0,145.18,145.08,94.31539]
[1641630078263,6.88468158,145.19,145.08,94.31539]
[1641630078462,27.66479,145.2,145.08,107.13139]
[1641630078663,34.54804991,145.22,145.08,103.13139]
[1641630078862,34.54804991,145.22,145.08,107.13139]
[1641630079062,34.54804991,145.22,145.08,103.13139]
[1641630079263,34.54804991,145.22,145.15,27.66479]
[1641630079462,38.54804991,145.22,145.13,27.66479]
[1641630079665,40.29604991,145.22,145.13,27.66479]
[1641630079865,24.0,145.21,145.13,27.66479]
[1641630080063,20.0,145.21,145.13,27.66479]
[1641630080263,29.50949097,145.21,145.09,1.70764204]
[1641630080462,4.0,145.19,145.09,1.70764204]
[1641630080662,12.201,145.19,145.09,1.70764204]
[1641630080863,12.201,145.19,145.08,66.6506]
[1641630081266,27.66479,145.18,145.08,94.31539]
[1641630081866,34.54970859,145.18,145.08,94.31539]
[1641630083466,34.54970859,145.18,145.09,1.71061688]
[1641630084067,4.0,145.15,145.09,1.71061688]
[1641630084468,11.036,145.15,145.09,1.71061688]
[1641630085168,7.036,145.15,145.08,27.66479]
[1641630085367,7.036,145.15,145.11,27.66479]
[1641630085567,98.69730859,145.18,145.11,27.66479]
[1641630085769,34.54970859,145.18,145.11,27.66479]
[1641630085971,34.54970859,145.18,145.11,35.37079]
[1641630087774,69.86713374,145.21,145.11,35.37079]
[1641630088776,69.86713374,145.21,145.12,1.71731419]
[1641630089576,69.86713374,145.21,145.12,9.56797136]
[1641630091577,73.86713374,145.21,145.12,9.56797136]
[1641630091777,73.86713374,145.21,145.13,14.62446997]
[1641630092178,69.86713374,145.21,145.13,14.62446997]
[1641630092380,73.86713374,145.21,145.13,14.62446997]
[1641630092583,4.0,145.19,145.13,14.62446997]
[1641630092781,24.0,145.2,145.13,14.62446997]
[1641630093080,4.0,145.19,145.13,14.62446997]
[1641630093280,7.15034284,145.19,145.12,1.71731419]
[1641630093481,10.8851556,145.18,145.12,1.71731419]
[1641630093680,4.0,145.17,145.12,1.71731419]
[1641630094282,7.15034284,145.17,145.12,1.71731419]
[1641630094481,3.15034284,145.17,145.12,1.71731419]
[1641630096186,3.15034284,145.17,145.11,19.38210419]
[1641630097790,4.87517985,145.16,145.12,4.87517985]
[1641630099893,4.0,145.14,145.12,4.87517985]
[1641630100195,4.0,145.14,145.11,24.25728404]
[1641630100394,4.0,145.15,145.11,24.25728404]
[1641630100794,24.0,145.14,145.11,24.25728404]
[1641630101198,20.0,145.14,145.11,24.25728404]
[1641630101395,24.0,145.14,145.11,24.25728404]
[1641630101798,24.0,145.14,145.11,4.87517985]
[1641630101996,4.0,145.12,145.08,14.62446997]
[1641630102195,4.0,145.12,145.07,14.62446997]
[1641630102496,30.88705234,145.14,145.07,14.62446997]
[1641630103197,30.88705234,145.14,145.05,68.3211]
[1641630103198,4.0,145.12,145.05,68.3211]
[1641630103396,24.0,145.11,145.04,14.62446997]
[1641630103595,31.66479,145.1,145.04,14.62446997]
[1641630103797,24.0,145.06,145.04,14.62446997]
[1641630103996,8.421,145.06,145.04,14.62446997]
[1641630104197,8.421,145.06,145.02,22.46234721]
[1641630104399,8.421,145.06,145.02,14.46234721]
[1641630105199,68.5573,145.09,144.99,4.0]
[1641630105400,34.5527911,145.12,144.99,6.156]
[1641630105600,66.7826,145.11,145.05,27.66479]
[1641630105802,54.5527911,145.12,145.05,34.75179]
[1641630106401,54.5527911,145.12,145.05,7.087]
[1641630106801,58.5527911,145.12,145.05,7.087]
[1641630107001,58.5527911,145.12,145.03,27.66479]
[1641630107701,54.5527911,145.12,145.04,4.0]
[1641630107901,54.5527911,145.12,145.04,10.638]
[1641630109202,27.66479,145.12,145.04,10.638]
[1641630109404,34.55136806,145.15,145.04,6.638]
[1641630109605,10.28,145.17,145.09,27.66479]
[1641630109804,10.28,145.17,145.09,33.68479]
[1641630110007,6.8844446,145.19,145.09,33.68479]
[1641630110205,6.8844446,145.19,145.09,37.68479]
[1641630110806,27.66479,145.2,145.09,37.68479]
[1641630111105,27.66479,145.2,145.09,33.68479]
[1641630111505,27.66479,145.2,145.12,27.66479]
[1641630111705,27.66479,145.2,145.1,7.82166619]
[1641630111907,24.0,145.19,145.1,7.82166619]
[1641630112108,31.296,145.19,145.1,7.82166619]
[1641630112306,4.0,145.18,145.1,7.82166619]
[1641630112510,4.0,145.18,145.06,69.0985]
[1641630112906,38.18068158,145.19,145.06,69.0985]
[1641630113607,27.66479,145.16,145.06,96.76329]
[1641630114209,19.84165849,145.16,145.06,96.76329]
[1641630116012,26.72776233,145.16,145.06,96.76329]
[1641630117516,27.66479,145.13,145.06,69.0985]
[1641630118116,20.0,145.11,145.03,38.67637172]
[1641630118314,27.66479,145.13,145.03,38.67637172]
[1641630118515,6.88823833,145.11,145.03,38.67637172]
[1641630118717,6.88823833,145.11,145.01,66.34116172]
[1641630119517,6.88823833,145.11,145.02,7.82261187]
[1641630120318,6.88823833,145.11,145.02,15.97361187]
[1641630120818,67.2952,145.12,145.02,15.97361187]
[1641630121718,27.66479,145.1,145.02,15.97361187]
[1641630125724,27.66479,145.1,145.02,7.82261187]
[1641630127328,38.55374012,145.1,145.02,7.82261187]
[1641630127531,34.55374012,145.1,145.02,7.82261187]
[1641630127727,27.66479,145.1,145.02,7.82261187]
[1641630128227,27.66479,145.1,145.0,66.2392]
[1641630128427,31.66479,145.1,145.0,66.2392]
[1641630129030,4.0,145.07,145.0,66.2392]
[1641630129228,10.397,145.07,144.98,69.5825]
[1641630129430,24.0,145.05,144.98,69.5825]
[1641630129630,27.66479,145.02,144.98,69.5825]
[1641630129828,36.50779,145.02,144.96,38.67637172]
[1641630131835,36.50779,145.02,144.95,7.82756025]
[1641630132134,4.0,145.0,144.95,7.82756025]
[1641630132332,4.0,145.01,144.95,7.82756025]
[1641630132635,56.50779,145.02,144.94,26.74666535]
[1641630132636,4.0,144.98,144.94,26.74666535]
[1641630132932,8.223,144.98,144.92,38.67637172]
[1641630134034,8.223,144.98,144.9,62.893]
[1641630134233,8.223,144.98,144.89,55.32958]
[1641630134433,4.0,144.97,144.86,38.67637172]
[1641630134635,12.223,144.98,144.87,66.2701]
[1641630135033,6.89560061,144.96,144.88,14.5593975]
[1641630135634,27.66479,144.93,144.88,14.5593975]
[1641630136134,27.66479,144.93,144.87,66.2701]
[1641630136637,27.66479,144.93,144.86,14.5593975]
[1641630137036,27.66479,144.93,144.88,1.70919207]
[1641630137839,27.66479,144.93,144.86,0.00919207]
[1641630139741,27.66479,144.93,144.85,4.0]
[1641630140944,27.66479,144.93,144.84,64.1832]
[1641630142047,34.76079,144.93,144.84,64.1832]
[1641630142247,34.76079,144.93,144.85,1.70433974]
[1641630142847,4.0,144.92,144.83,27.66479]
[1641630143047,4.0,144.91,144.83,21.08912974]
[1641630143246,24.0,144.89,144.83,21.08912974]
[1641630143448,20.0,144.89,144.8,87.6375975]
[1641630143848,27.66479,144.86,144.8,87.6375975]
[1641630144048,27.66479,144.86,144.8,14.5593975]
[1641630144248,27.66479,144.86,144.76,26.7013975]
[1641630144448,27.66479,144.86,144.78,4.0]
[1641630145050,27.66479,144.86,144.83,4.0]
[1641630145248,10.54,144.93,144.83,10.425]
[1641630145849,38.20479,144.93,144.83,38.08979]
[1641630146049,38.20479,144.93,144.84,4.0]
[1641630146249,38.20479,144.93,144.83,31.66479]
[1641630146651,38.20479,144.93,144.83,27.66479]
[1641630147550,38.20479,144.93,144.82,62.9986]
[1641630147750,27.66479,144.9,144.82,62.9986]
[1641630149751,27.66479,144.86,144.82,62.9986]
[1641630149952,27.66479,144.86,144.79,18.5593975]
[1641630150353,27.66479,144.86,144.79,4.0]
[1641630150552,27.66479,144.86,144.78,46.2241875]
[1641630150751,27.66479,144.86,144.78,42.2241875]
[1641630151753,55.32958,144.86,144.78,27.66479]
[1641630153858,27.66479,144.86,144.78,27.66479]
[1641630154256,6.89821681,144.9,144.82,4.0]
[1641630154461,10.54,144.93,144.82,6.679]
[1641630154858,6.89536287,144.96,144.82,10.679]
[1641630155160,6.89536287,144.96,144.83,69.5496]
[1641630155459,6.89631392,144.94,144.83,69.5496]
[1641630155858,27.66479,144.91,144.83,69.5496]
[1641630157058,6.89821681,144.9,144.83,69.5496]
[1641630157663,27.66479,144.91,144.83,69.5496]
[1641630158761,70.6585031,144.92,144.84,4.0]
[1641630158961,30.1,144.98,144.87,4.0]
[1641630159163,76.05348744,144.97,144.87,10.019]
[1641630159362,10.1,144.98,144.88,4.0]
[1641630159763,37.76479,144.98,144.89,27.66479]
[1641630159962,27.66479,144.98,144.89,27.66479]
[1641630160766,47.66479,144.98,144.89,27.66479]
[1641630160964,27.66479,144.98,144.89,27.66479]
[1641630161464,51.66479,144.98,144.89,27.66479]
[1641630161665,47.66479,144.98,144.88,82.0024975]
[1641630161864,27.66479,144.95,144.88,82.0024975]
[1641630162264,27.66479,144.95,144.89,4.86492472]
[1641630163066,27.66479,144.95,144.9,4.86492472]
[1641630163865,27.66479,144.92,144.9,4.86492472]
[1641630164067,27.66479,144.92,144.89,4.86492472]
[1641630164467,33.33879,144.92,144.89,4.86492472]
[1641630164867,33.33879,144.92,144.88,4.86492472]
[1641630165067,57.33879,144.92,144.88,4.86492472]
[1641630165471,57.33879,144.92,144.88,2.472e-05]
[1641630165668,57.33879,144.92,144.87,2.472e-05]
[1641630165869,27.66479,144.88,144.87,2.472e-05]
[1641630166672,34.5646727,144.88,144.82,14.5593975]
[1641630166869,58.5646727,144.88,144.82,14.5593975]
[1641630167669,58.5646727,144.88,144.78,14.5593975]
[1641630167870,27.66479,144.82,144.78,14.5593975]
[1641630168870,27.66479,144.82,144.77,14.5593975]
[1641630171372,27.66479,144.82,144.76,14.5593975]
[1641630173874,34.5646727,144.88,144.77,4.0]
[1641630174074,44.7246727,144.88,144.77,10.66]
[1641630174274,37.82479,144.88,144.79,4.0]
[1641630174774,37.82479,144.88,144.81,4.0]
[1641630175074,64.1785,144.9,144.82,4.0]
[1641630175275,6.89797889,144.91,144.81,10.8]
[1641630175475,17.15797889,144.91,144.81,6.8]
[1641630175677,17.15797889,144.91,144.82,14.5593975]
[1641630175876,27.66479,144.89,144.82,14.5593975]
[1641630176680,27.66479,144.89,144.81,6.8]
[1641630177077,6.89916865,144.88,144.81,6.8]
[1641630177979,27.66479,144.85,144.81,6.8]
[1641630178179,34.565625,144.85,144.79,14.5593975]
[1641630178381,42.177625,144.85,144.79,14.5593975]
[1641630178680,42.177625,144.85,144.77,81.9976975]
[1641630178880,42.177625,144.85,144.77,14.5593975]
[1641630179684,42.177625,144.85,144.76,22.37544577]
[1641630179881,69.842415,144.85,144.76,22.37544577]
[1641630180581,69.842415,144.85,144.76,14.5593975]
[1641630180782,69.842415,144.85,144.75,91.06689]
[1641630180783,69.842415,144.85,144.75,105.6262875]
[1641630180983,69.842415,144.85,144.75,77.9614975]
[1641630181385,69.842415,144.85,144.75,63.4021]
[1641630181988,27.66479,144.8,144.75,63.4021]
[1641630182188,27.66479,144.8,144.74,18.5593975]
[1641630182385,27.66479,144.8,144.73,14.5593975]
[1641630184487,27.66479,144.8,144.73,24.0813467]
[1641630185090,27.66479,144.8,144.74,14.5593975]
[1641630185889,55.32958,144.8,144.73,24.0813467]
[1641630186091,61.85158,144.8,144.73,24.0813467]
[1641630186794,61.85158,144.8,144.73,1.71244724]
[1641630186995,65.85158,144.8,144.73,1.71244724]
[1641630187194,61.85158,144.8,144.73,1.71244724]
[1641630187795,55.32958,144.8,144.73,1.71244724]
[1641630188196,59.32958,144.8,144.73,1.71244724]
[1641630189597,55.32958,144.8,144.73,1.71244724]
[1641630189998,27.66479,144.77,144.73,1.71244724]
[1641630191200,35.42179,144.77,144.73,1.71244724]
[1641630192201,35.42179,144.77,144.7,24.08267566]
[1641630193002,35.42179,144.77,144.72,14.5593975]
[1641630195402,7.757,144.77,144.72,14.5593975]
[1641630196605,61.91758,144.8,144.71,14.5593975]
[1641630197708,55.32958,144.8,144.71,14.5593975]
[1641630198608,59.32958,144.8,144.71,14.5593975]
[1641630199609,6.90464683,144.77,144.71,14.5593975]
[1641630199814,15.21764683,144.77,144.7,24.08267566]
[1641630200009,27.66479,144.76,144.7,24.08267566]
[1641630200810,27.66479,144.76,144.7,1.71244724]
[1641630204110,27.66479,144.73,144.7,1.71244724]
[1641630204312,33.62079,144.73,144.7,1.71244724]
[1641630205415,33.62079,144.73,144.68,14.5593975]
[1641630205713,27.66479,144.73,144.68,14.5593975]
[1641630207216,27.66479,144.73,144.7,14.5593975]
[1641630207519,27.66479,144.73,144.7,4.5593975]
[1641630210818,27.66479,144.73,144.68,8.544]
[1641630211619,27.66479,144.73,144.69,1.71244724]
[1641630212119,27.66479,144.73,144.69,6.76144724]
[1641630212519,27.66479,144.73,144.69,6.749]
[1641630213922,10.12,144.77,144.72,4.0]
[1641630214125,6.90297864,144.8,144.76,27.66479]
[1641630214322,6.90297864,144.8,144.76,33.77779]
[1641630217224,4.0,144.78,144.72,38.67637172]
[1641630217523,5.52534493,144.79,144.72,38.67637172]
[1641630217729,6.90297864,144.8,144.72,38.67637172]
[1641630217925,10.38,144.82,144.72,38.67637172]
[1641630218124,10.38,144.82,144.72,45.89637172]
[1641630218325,27.66479,144.75,144.72,7.22]
[1641630219926,27.66479,144.75,144.7,38.67637172]
[1641630221028,27.66479,144.75,144.69,58.99651814]
[1641630223229,27.66479,144.75,144.69,46.51477441]
[1641630223430,27.66479,144.77,144.69,11.83840269]
[1641630223729,27.66479,144.77,144.69,7.83840269]
[1641630224130,10.38,144.82,144.69,7.83840269]
[1641630224332,27.66479,144.78,144.7,38.67637172]
[1641630225133,27.66479,144.78,144.71,38.67637172]
[1641630225934,27.66479,144.78,144.75,4.88600785]
[1641630226335,55.32958,144.78,144.75,4.88600785]
[1641630226933,55.32958,144.78,144.76,4.88600785]
[1641630227733,55.32958,144.78,144.77,4.88600785]
[1641630229333,55.32958,144.78,144.76,4.88600785]
[1641630230234,55.32958,144.78,144.77,4.88600785]
[1641630231234,55.32958,144.78,144.75,7.655]
[1641630232435,27.66479,144.78,144.75,7.655]
[1641630233039,27.66479,144.82,144.75,7.655]
[1641630233239,4.88600785,144.83,144.75,7.655]
[1641630233736,4.88600785,144.83,144.75,11.655]
[1641630233938,4.88600785,144.85,144.8,4.88259598]
[1641630234138,4.88600785,144.85,144.8,13.03459598]
[1641630235241,27.66479,144.87,144.83,4.88259598]
[1641630235541,27.66479,144.87,144.83,10.50559598]
[1641630235741,27.66479,144.87,144.84,4.0]
[1641630236040,27.66479,144.89,144.86,4.0]
[1641630236240,32.54199702,144.89,144.86,5.565]
[1641630237440,106.83429,144.94,144.86,5.565]
[1641630239642,98.99923042,144.94,144.86,5.565]
[1641630240145,98.99923042,144.94,144.83,5.623]
[1641630240342,109.16423042,144.94,144.82,42.26007345]
[1641630240543,27.66479,144.89,144.82,14.59528345]
[1641630241144,27.66479,144.89,144.81,68.822]
[1641630242242,27.66479,144.89,144.81,72.822]
[1641630242445,27.66479,144.89,144.82,4.0]
[1641630242643,27.66479,144.89,144.81,68.822]
[1641630242843,27.66479,144.89,144.81,72.822]
[1641630245645,27.66479,144.89,144.81,68.822]
[1641630245848,27.66479,144.89,144.82,4.0]
[1641630246048,27.66479,144.89,144.83,4.0]
[1641630246245,27.66479,144.89,144.82,6.337]
[1641630246246,98.99923042,144.94,144.82,6.337]
[1641630246447,98.99923042,144.94,144.82,10.337]
[1641630246648,27.66479,144.91,144.82,38.00179]
[1641630246948,27.66479,144.91,144.83,4.0]
[1641630247248,27.66479,144.91,144.84,4.0]
[1641630248048,27.66479,144.91,144.82,38.00179]
[1641630248248,27.66479,144.91,144.82,34.00179]
[1641630248550,27.66479,144.91,144.82,48.59707345]
[1641630249449,27.66479,144.91,144.82,34.00179]
[1641630251851,27.66479,144.91,144.82,38.00179]
[1641630252050,27.66479,144.91,144.82,34.00179]
[1641630252451,27.66479,144.91,144.83,1.70944639]
[1641630253454,27.66479,144.91,144.83,5.70944639]
[1641630253655,98.99923042,144.94,144.89,4.0]
[1641630253656,27.66479,144.94,144.89,4.0]
[1641630253854,79.17148345,144.98,144.89,5.415]
[1641630254656,27.66479,144.97,144.89,9.415]
[1641630254855,10.42,145.01,144.95,4.0]
[1641630255056,63.5399,145.07,144.95,15.70923833]
[1641630255355,21.24942473,145.09,144.95,15.70923833]
[1641630255555,14.36,145.09,144.97,6.88705234]
[1641630255759,14.36,145.09,144.97,10.88705234]
[1641630256258,4.0,145.09,144.98,4.0]
[1641630256458,4.0,145.09,144.98,11.768]
[1641630256656,4.0,145.09,145.02,27.66479]
[1641630256856,4.0,145.09,145.02,34.68479]
[1641630259464,224.90169,145.12,145.02,34.68479]
[1641630259661,27.66479,145.12,145.04,4.0]
[1641630260664,27.66479,145.12,145.05,27.66479]
[1641630260865,246.55366503,145.19,145.05,37.76379]
[1641630261064,156.55366503,145.19,145.06,4.0]
[1641630261264,156.55366503,145.19,145.07,4.0]
[1641630261466,156.55366503,145.19,145.05,40.64704991]
[1641630261467,149.66898345,145.19,145.05,40.64704991]
[1641630261665,3.91312501,145.17,145.05,40.64704991]
[1641630261867,3.91312501,145.17,145.08,4.0]
[1641630262167,3.91312501,145.18,145.08,6.466]
[1641630262566,68.1078,145.19,145.08,6.466]
[1641630262767,68.1078,145.19,145.09,27.66479]
[1641630262966,3.9130022,145.18,145.09,27.66479]
[1641630263166,4.0,145.15,145.09,27.66479]
[1641630263366,4.0,145.14,145.05,33.76379]
[1641630263570,7.9130022,145.14,145.05,33.76379]
[1641630263768,4.0,145.13,145.05,33.76379]
[1641630263969,10.6550022,145.13,145.05,27.66479]
[1641630264167,4.0,145.09,144.99,69.1899]
[1641630264368,4.0,145.08,144.98,73.80377806]
[1641630264570,7.074,145.09,144.98,6.88657806]
[1641630264770,27.66479,145.08,145.01,27.66479]
[1641630266576,4.0,145.06,145.01,27.66479]
[1641630266774,4.0,145.03,144.94,34.55350284]
[1641630266973,4.0,145.03,144.94,27.66479]
[1641630267175,7.242,145.04,144.94,27.66479]
[1641630267176,4.0,144.99,144.94,27.66479]
[1641630267373,6.518,144.99,144.94,27.66479]
[1641630268273,10.89227376,145.03,144.94,27.66479]
[1641630268674,27.66479,145.01,144.94,27.66479]
[1641630269674,27.66479,145.01,144.91,27.66479]
[1641630270577,38.55706376,145.03,144.91,27.66479]
[1641630270775,34.55706376,145.03,144.94,27.66479]
[1641630270977,34.55706376,145.03,144.94,34.42979]
[1641630274679,34.55706376,145.03,144.94,62.09458]
[1641630276679,27.66479,145.03,144.94,62.09458]
[1641630277480,27.66479,145.03,144.94,66.09458]
[1641630277680,6.88847558,145.11,145.0,4.0]
[1641630277882,42.67637172,145.13,145.0,12.329]
[1641630277883,14.59528345,145.09,145.0,12.329]
[1641630278080,14.59528345,145.09,145.0,8.329]
[1641630278880,102.23721669,145.13,145.02,27.66479]
[1641630279080,34.55231669,145.13,145.02,27.66479]
[1641630279481,3.91407833,145.12,145.02,27.66479]
[1641630281682,3.91407833,145.12,145.02,31.66479]
[1641630281882,3.91407833,145.12,145.02,27.66479]
[1641630283486,7.91407833,145.12,145.02,27.66479]
[1641630283687,4.0,145.11,145.02,27.66479]
[1641630284087,38.55231669,145.13,145.02,27.66479]
[1641630284288,34.55231669,145.13,145.02,27.66479]
[1641630284589,3.91428944,145.12,145.02,27.66479]
[1641630284788,7.05844315,145.12,145.02,27.66479]
[1641630285588,3.14415371,145.11,145.02,27.66479]
[1641630286289,3.14415371,145.12,145.02,27.66479]
[1641630286889,3.91435056,145.11,145.02,27.66479]
[1641630287890,3.14415371,145.1,145.02,27.66479]
[1641630288791,17.73943716,145.12,145.02,27.66479]
[1641630289592,3.9143719,145.11,145.02,27.66479]
[1641630290294,3.14415371,145.1,145.02,27.66479]
[1641630290693,4.0,145.09,145.02,27.66479]
[1641630290893,4.0,145.08,145.0,35.99379]
[1641630291095,4.0,145.05,145.0,8.329]
[1641630291294,6.88966206,145.08,144.97,27.66479]
[1641630291796,3.14415371,145.07,144.97,27.66479]
[1641630292195,4.0,145.06,144.97,27.66479]
[1641630292501,4.0,145.05,144.95,68.5963]
[1641630292697,4.0,145.06,144.93,77.56488345]
[1641630292895,27.66479,145.04,144.94,27.66479]
[1641630293597,27.66479,145.04,144.95,1.71485011]
[1641630293798,27.66479,145.04,144.95,9.05085011]
[1641630294600,27.66479,145.04,144.96,1.71485011]
[1641630296403,27.66479,145.04,144.98,4.86389472]
[1641630298503,4.86389472,145.06,144.98,15.65489472]
[1641630298707,4.86389472,145.06,144.98,11.65489472]
[1641630298907,4.86389472,145.06,144.99,32.52868472]
[1641630299606,4.86389472,145.06,145.0,4.86389472]
[1641630299808,4.86389472,145.07,145.0,6.57874483]
[1641630300910,9.472e-05,145.07,145.04,27.66479]
[1641630301111,9.472e-05,145.07,145.04,33.39979]
[1641630301510,14.59528345,145.12,145.04,33.39979]
[1641630302313,3.15093894,145.12,145.04,33.39979]
[1641630303917,3.15093894,145.12,145.04,27.66479]
[1641630305021,3.15093894,145.12,145.04,33.99779]
[1641630305418,3.15093894,145.12,145.06,4.0]
[1641630305922,3.15093894,145.12,145.08,4.0]
[1641630306118,3.15093894,145.12,145.08,6.788]
[1641630306318,14.59528345,145.16,145.08,6.788]
[1641630306918,14.59528345,145.16,145.09,27.66479]
[1641630307420,14.59528345,145.17,145.09,27.66479]
[1641630307619,14.59528345,145.17,145.09,19.84030406]
[1641630309022,14.59528345,145.17,145.09,47.50509406]
[1641630309222,66.34116172,145.21,145.1,1.7194299]
[1641630309223,3.15093894,145.19,145.1,1.7194299]
[1641630310425,3.15093894,145.2,145.1,1.7194299]
[1641630310826,4.0,145.19,145.1,1.7194299]
[1641630311027,3.15093894,145.2,145.09,47.50509406]
[1641630312128,17.74622239,145.2,145.09,47.50509406]
[1641630312926,3.15093894,145.2,145.09,47.50509406]
[1641630313529,7.15093894,145.2,145.09,47.50509406]
[1641630313730,3.15093894,145.2,145.09,47.50509406]
[1641630314330,7.15093894,145.2,145.09,47.50509406]
[1641630315030,3.91257651,145.19,145.09,47.50509406]
[1641630315433,3.15093894,145.19,145.09,47.50509406]
[1641630317635,3.15093894,145.2,145.09,47.50509406]
[1641630317835,3.15093894,145.2,145.09,53.74309406]
[1641630319037,3.15093894,145.2,145.09,57.74309406]
[1641630319738,3.15093894,145.2,145.09,53.74309406]
[1641630320040,27.66479,145.21,145.09,53.74309406]
[1641630320841,27.66479,145.21,145.1,4.0]
[1641630321045,27.66479,145.21,145.13,27.66479]